bitfinex-derivatives/quotes_BTCF0:USTF0_20250422
["timestamp","ask_amount","ask_price","bid_price","bid_amount"]
[1745349859537,0.192,91688.0,91687.0,0.4587]
[1745349861039,0.192,91688.0,91687.0,0.5676772]
[1745349862038,0.092,91688.0,91687.0,0.5676772]
[1745349862233,0.523863,91699.0,91689.0,0.1089748]
[1745349862435,0.523863,91699.0,91690.0,0.0968]
[1745349862436,0.054482,91698.0,91690.0,0.0968]
[1745349862636,0.1089674,91696.0,91690.0,0.3668]
[1745349862938,0.108969,91694.0,91691.0,0.1889]
[1745349863136,0.108969,91694.0,91691.0,0.4689]
[1745349863137,0.300969,91694.0,91691.0,0.4689]
[1745349863339,0.300969,91694.0,91692.0,0.0968]
[1745349863540,0.300969,91694.0,91692.0,0.3368]
[1745349863740,0.300969,91694.0,91693.0,0.0977]
[1745349863941,0.192,91694.0,91693.0,0.3677]
[1745349864142,0.192,91694.0,91693.0,0.4692]
[1745349865446,0.192,91694.0,91693.0,0.9419701]
[1745349865842,0.192,91694.0,91693.0,0.92834242]
[1745349866040,0.192,91694.0,91693.0,0.93134242]
[1745349866242,0.1,91700.0,91693.0,0.82237232]
[1745349866436,0.1089667,91696.0,91693.0,0.82237232]
[1745349866837,0.0544821,91698.0,91693.0,0.82237232]
[1745349867345,0.2464821,91698.0,91693.0,0.82237232]
[1745349867541,0.192,91698.0,91693.0,0.82237232]
[1745349867741,0.3009643,91698.0,91693.0,0.82237232]
[1745349867936,0.3009643,91698.0,91693.0,0.82137232]
[1745349868243,0.192,91698.0,91693.0,0.81837232]
[1745349868549,0.192,91698.0,91695.0,0.1089675]
[1745349868746,0.192,91698.0,91696.0,0.0964]
[1745349868945,0.192,91698.0,91696.0,0.3664]
[1745349869244,0.1011,91699.0,91697.0,0.1009]
[1745349869545,0.1011,91699.0,91697.0,0.3609]
[1745349869842,0.1011,91699.0,91698.0,0.0964]
[1745349870047,0.1011,91699.0,91698.0,0.37870264]
[1745349870241,0.1011,91699.0,91698.0,0.4668]
[1745349870950,0.1011,91699.0,91698.0,0.4688]
[1745349871645,0.210063,91699.0,91698.0,0.3684]
[1745349871841,0.666063,91699.0,91698.0,0.272]
[1745349872235,0.858063,91699.0,91698.0,0.24683215]
[1745349875948,0.858063,91699.0,91698.0,0.23320286]
[1745349880156,0.858063,91699.0,91698.0,0.20703469]
[1745349886441,0.858063,91699.0,91698.0,0.19340528]
[1745349888149,0.858063,91699.0,91698.0,0.16723826]
[1745349892645,0.858063,91699.0,91698.0,0.1481578]
[1745349895457,0.762863,91699.0,91698.0,0.1481578]
[1745349896352,0.762863,91699.0,91698.0,0.12199081]
[1745349896542,0.661763,91699.0,91698.0,0.10836218]
[1745349897547,0.754363,91699.0,91698.0,0.10836218]
[1745349898858,0.661763,91699.0,91698.0,0.10836218]
[1745349900052,0.192,91699.0,91698.0,0.21732628]
[1745349900454,0.192,91699.0,91698.0,0.50462628]
[1745349900849,0.300963,91699.0,91698.0,0.50462628]
[1745349901161,0.1,91700.0,91698.0,0.50462628]
[1745349901458,0.1,91700.0,91698.0,0.39566218]
[1745349901459,0.108963,91699.0,91698.0,0.39566218]
[1745349902250,0.108963,91699.0,91698.0,0.4078032]
[1745349902458,0.108963,91699.0,91698.0,0.4068032]
[1745349902652,0.108963,91699.0,91698.0,0.4078032]
[1745349903353,0.108963,91699.0,91698.0,0.4088032]
[1745349903954,0.2089618,91700.0,91698.0,0.4088032]
[1745349904160,0.2089618,91700.0,91698.0,0.5177668]
[1745349904458,0.108963,91699.0,91698.0,0.4088032]
[1745349905056,0.108963,91699.0,91698.0,0.4078032]
[1745349905256,0.108963,91699.0,91698.0,0.4068032]
[1745349905657,0.108963,91699.0,91698.0,0.4058032]
[1745349905854,0.108963,91699.0,91698.0,0.4078032]
[1745349906050,0.108963,91699.0,91698.0,0.4088032]
[1745349906663,0.108963,91699.0,91698.0,0.4068032]
[1745349906867,0.108963,91699.0,91698.0,0.39817624]
[1745349907367,0.109963,91699.0,91698.0,0.40117624]
[1745349908267,0.001,91699.0,91698.0,0.40117624]
[1745349909167,0.001,91699.0,91698.0,0.51014034]
[1745349910567,0.001,91699.0,91698.0,0.40117624]
[1745349910954,0.109963,91699.0,91698.0,0.38903522]
[1745349913671,0.109963,91699.0,91698.0,0.4013759]
[1745349914667,0.109963,91699.0,91698.0,0.38903522]
[1745349916265,0.109963,91699.0,91698.0,0.36287117]
[1745349917158,0.109963,91699.0,91698.0,0.34924388]
[1745349917561,0.001,91699.0,91698.0,0.34924388]
[1745349917864,0.109963,91699.0,91698.0,0.34924388]
[1745349918262,0.109963,91699.0,91698.0,0.36124949]
[1745349920069,0.001,91699.0,91698.0,0.36124949]
[1745349920467,0.109963,91699.0,91698.0,0.06194388]
[1745349920764,0.402863,91699.0,91698.0,0.06194388]
[1745349921155,0.594863,91699.0,91698.0,0.06194388]
[1745349927270,0.594863,91699.0,91698.0,0.04831579]
[1745349930264,0.1089725,91691.0,91690.0,0.00016358]
[1745349931162,0.3009725,91691.0,91690.0,0.00016358]
[1745349931368,0.3019725,91691.0,91690.0,0.00716358]
[1745349931666,0.3019725,91691.0,91690.0,0.01516358]
[1745349931866,0.3019725,91691.0,91690.0,0.28516358]
[1745349932069,0.3019725,91691.0,91690.0,0.27716358]
[1745349932268,0.3019725,91691.0,91690.0,0.28016358]
[1745349932766,0.3009725,91691.0,91690.0,0.27316358]
[1745349932967,0.3009725,91691.0,91690.0,0.27516358]
[1745349933168,0.6617725,91691.0,91690.0,0.27516358]
[1745349933365,0.6617725,91691.0,91677.0,0.00163616]
[1745349933366,0.0544884,91688.0,91677.0,0.00163616]
[1745349933570,0.1089879,91678.0,91677.0,0.05163616]
[1745349934175,0.3009879,91678.0,91677.0,0.05163616]
[1745349934470,0.3009879,91678.0,91677.0,0.06388078]
[1745349934671,0.3949879,91678.0,91677.0,0.16158078]
[1745349934969,0.3949879,91678.0,91677.0,0.16258078]
[1745349935169,0.2029879,91678.0,91677.0,0.16258078]
[1745349935962,0.2039879,91678.0,91677.0,0.16758078]
[1745349936569,0.2039879,91678.0,91677.0,0.17158078]
[1745349938370,0.001,91678.0,91677.0,0.17158078]
[1745349938673,0.001,91678.0,91677.0,0.26693928]
[1745349939171,0.1099879,91678.0,91677.0,0.26693928]
[1745349941978,0.001,91678.0,91677.0,0.26693928]
[1745349942377,0.1099879,91678.0,91677.0,0.26693928]
[1745349943464,0.001,91678.0,91677.0,0.26693928]
[1745349944867,0.00025,91697.0,91686.0,0.1089784]
[1745349945172,0.1089767,91688.0,91686.0,0.6997784]
[1745349945370,0.10914017,91687.0,91686.0,0.9020784]
[1745349945569,0.00016297,91687.0,91686.0,0.9020784]
[1745349945874,0.10914017,91687.0,91686.0,0.7951]
[1745349946380,0.11014017,91687.0,91686.0,0.7981]
[1745349948681,0.11014017,91687.0,91686.0,0.77193253]
[1745349949182,0.11014017,91687.0,91686.0,0.75830342]
[1745349950386,0.11014017,91687.0,91686.0,0.4373]
[1745349953483,0.00116297,91687.0,91686.0,0.4373]
[1745349959791,0.00116297,91687.0,91686.0,0.4236708]
[1745349960185,0.00116297,91687.0,91686.0,0.39750217]
[1745349964491,0.00116297,91687.0,91686.0,0.50648057]
[1745349965493,0.1984,91699.0,91686.0,0.50648057]
[1745349965494,0.1984,91699.0,91693.0,0.1089699]
[1745349965685,0.1984,91699.0,91694.0,0.3001]
[1745349965894,0.1984,91699.0,91694.0,0.5801]
[1745349966206,0.1984,91699.0,91696.0,0.1089662]
[1745349966396,0.1003,91699.0,91697.0,0.2003]
[1745349966597,0.1003,91699.0,91697.0,0.4803]
[1745349966898,0.1013,91699.0,91697.0,0.4803]
[1745349967495,0.1023,91699.0,91697.0,0.4803]
[1745349967986,0.2018,91699.0,91697.0,0.4803]
[1745349968894,0.2008,91699.0,91697.0,0.4803]
[1745349969094,0.2008,91699.0,91697.0,0.4873]
[1745349970299,0.3928,91699.0,91697.0,0.4873]
[1745349970893,0.193,91699.0,91697.0,0.4873]
[1745349971308,0.0984,91699.0,91697.0,0.4843]
[1745349971598,0.0984,91699.0,91697.0,0.4863]
[1745349971791,0.2075641,91698.0,91697.0,0.286]
[1745349971988,0.1089808,91684.0,91683.0,0.36399643]
[1745349972194,0.0974,91697.0,91683.0,0.26]
[1745349972392,0.0986,91696.0,91683.0,0.24637006]
[1745349972594,0.1530834,91696.0,91683.0,0.35535116]
[1745349972786,0.0986,91696.0,91683.0,0.24637006]
[1745349972988,0.1089792,91686.0,91683.0,0.24637006]
[1745349973200,0.1089796,91685.0,91684.0,0.0983]
[1745349973402,0.3017796,91685.0,91684.0,0.4386]
[1745349974188,0.5969796,91685.0,91684.0,0.4386]
[1745349975401,0.5979796,91685.0,91684.0,0.4426]
[1745349975801,0.5979796,91685.0,91684.0,0.4446]
[1745349979604,0.3858,91685.0,91684.0,0.4446]
[1745349979800,0.3984796,91685.0,91684.0,0.4406]
[1745349980007,0.3994796,91685.0,91684.0,0.4446]
[1745349980500,0.3984796,91685.0,91684.0,0.4446]
[1745349980699,0.3994796,91685.0,91684.0,0.4446]
[1745349981298,0.3994796,91685.0,91684.0,0.4456]
[1745349981605,0.3994796,91685.0,91684.0,0.41943077]
[1745349982005,0.3984796,91685.0,91684.0,0.41543077]
[1745349982201,0.3994796,91685.0,91684.0,0.41943077]
[1745349982803,0.3994796,91685.0,91684.0,0.40580102]
[1745349983597,0.2905,91685.0,91684.0,0.40580102]
[1745349984106,0.3994796,91685.0,91684.0,0.40580102]
[1745349984498,0.3994796,91685.0,91684.0,0.40280102]
[1745349984801,0.3994796,91685.0,91684.0,0.40480102]
[1745349986307,0.3984796,91685.0,91684.0,0.40080102]
[1745349986509,0.3994796,91685.0,91684.0,0.40480102]
[1745349987205,0.2074796,91685.0,91684.0,0.40480102]
[1745349988199,0.3994796,91685.0,91684.0,0.40480102]
[1745349988399,0.5036796,91685.0,91684.0,0.40480102]
[1745349989109,0.3947,91685.0,91684.0,0.40480102]
[1745349989301,0.2905,91685.0,91684.0,0.40480102]
[1745349989502,0.192,91685.0,91684.0,0.40080102]
[1745349989806,0.193,91685.0,91684.0,0.40480102]
[1745349990102,0.192,91685.0,91684.0,0.40080102]
[1745349990301,0.193,91685.0,91684.0,0.40480102]
[1745349990495,0.3019796,91685.0,91684.0,0.40480102]
[1745349990699,0.3009796,91685.0,91684.0,0.39880102]
[1745349990900,0.3999796,91685.0,91684.0,0.40480102]
[1745349991507,0.4961796,91685.0,91684.0,0.40480102]
[1745349992107,0.4961796,91685.0,91684.0,0.40580102]
[1745349992812,0.4951796,91685.0,91684.0,0.38817093]
[1745349993002,0.4961796,91685.0,91684.0,0.39217093]
[1745349993911,0.4951796,91685.0,91684.0,0.38817093]
[1745349994114,0.4961796,91685.0,91684.0,0.39117093]
[1745349995113,0.3041796,91685.0,91684.0,0.39117093]
[1745349995412,0.3041796,91685.0,91684.0,0.38717093]
[1745349995710,0.3041796,91685.0,91684.0,0.39217093]
[1745349996104,0.4961796,91685.0,91684.0,0.39217093]
[1745349996612,0.4951796,91685.0,91684.0,0.38817093]
[1745349996811,0.4961796,91685.0,91684.0,0.39217093]
[1745349997112,0.3041796,91685.0,91684.0,0.39117093]
[1745349998105,0.4961796,91685.0,91684.0,0.39117093]
[1745349998514,0.4961796,91685.0,91684.0,0.38917093]
[1745349998711,0.4961796,91685.0,91684.0,0.39217093]
[1745349999215,0.4951796,91685.0,91684.0,0.38817093]
[1745349999416,0.4961796,91685.0,91684.0,0.39217093]
[1745350000518,0.4961796,91685.0,91684.0,0.3473]
[1745350001017,0.4961796,91685.0,91684.0,0.3463]
[1745350001903,0.4951796,91685.0,91684.0,0.3423]
[1745350002104,0.4961796,91685.0,91684.0,0.3463]
[1745350002519,0.4951796,91685.0,91684.0,0.3403]
[1745350002727,0.4961796,91685.0,91684.0,0.3463]
[1745350003414,0.4961796,91685.0,91684.0,0.33266964]
[1745350003616,0.4961796,91685.0,91684.0,0.30649943]
[1745350004221,0.4961796,91685.0,91684.0,0.30749943]
[1745350004913,0.4961796,91685.0,91684.0,0.30449943]
[1745350005114,0.4961796,91685.0,91684.0,0.30649943]
[1745350005813,0.4951796,91685.0,91684.0,0.30249943]
[1745350006016,0.4961796,91685.0,91684.0,0.30649943]
[1745350006613,0.4961796,91685.0,91684.0,0.246]
[1745350006813,0.1089962,91671.0,91653.0,0.3608]
[1745350007013,0.06996,91672.0,91670.0,0.06]
[1745350007210,0.1090034,91665.0,91664.0,0.0999]
[1745350007516,0.1090034,91665.0,91664.0,0.3699]
[1745350008217,0.5005034,91665.0,91664.0,0.3699]
[1745350008524,0.5015034,91665.0,91664.0,0.3779]
[1745350009317,0.193,91665.0,91664.0,0.7387]
[1745350009718,0.3020034,91665.0,91664.0,0.7387]
[1745350010320,0.1100034,91665.0,91664.0,0.7387]
[1745350011824,0.1110034,91665.0,91664.0,0.7397]
[1745350013227,0.1110034,91665.0,91664.0,0.71352548]
[1745350013728,0.1110034,91665.0,91664.0,0.69989291]
[1745350014426,0.2069034,91665.0,91664.0,0.69989291]
[1745350014821,0.2069034,91665.0,91664.0,0.33909291]
[1745350015222,0.3026034,91665.0,91664.0,0.33909291]
[1745350015527,0.3026034,91665.0,91664.0,0.279]
[1745350016229,0.4946034,91665.0,91664.0,0.279]
[1745350019728,0.0545052,91660.0,91656.0,0.00163653]
[1745350019929,0.0545052,91660.0,91655.0,0.00016358]
[1745350019930,0.3608,91657.0,91655.0,0.00016358]
[1745350020124,0.2985141,91656.0,91655.0,0.28]
[1745350020319,0.4012141,91656.0,91655.0,0.28]
[1745350020827,0.409258,91656.0,91655.0,0.28]
[1745350021021,0.109026,91646.0,91645.0,0.21138346]
[1745350021219,0.109026,91646.0,91645.0,0.29138346]
[1745350021730,0.109026,91646.0,91645.0,0.2761]
[1745350021921,0.204326,91646.0,91645.0,0.2761]
[1745350022119,0.1090367,91637.0,91636.0,0.00016367]
[1745350022331,0.1090367,91637.0,91636.0,0.28016367]
[1745350023519,0.1100367,91637.0,91636.0,0.28116367]
[1745350024122,0.1090367,91637.0,91636.0,0.29505675]
[1745350024329,0.1100367,91637.0,91636.0,0.29605675]
[1745350024725,0.1100367,91637.0,91636.0,0.2824198]
[1745350025224,0.1110367,91637.0,91636.0,0.2824198]
[1745350025620,0.1110367,91637.0,91636.0,0.26752672]
[1745350026239,0.3020367,91637.0,91636.0,0.26652672]
[1745350026425,0.3030367,91637.0,91636.0,0.27052672]
[1745350027123,0.1110367,91637.0,91636.0,0.27052672]
[1745350029334,0.3030367,91637.0,91636.0,0.27052672]
[1745350030138,0.5021367,91637.0,91636.0,0.27052672]
[1745350030830,0.5021367,91637.0,91636.0,0.24434272]
[1745350032136,0.8629367,91637.0,91636.0,0.24434272]
[1745350032439,0.8629367,91637.0,91636.0,0.20813108]
[1745350035851,0.8629367,91637.0,91636.0,0.1944926]
[1745350036738,0.9720647,91637.0,91636.0,0.1944926]
[1745350036945,0.9868494,91637.0,91636.0,0.1944926]
[1745350037249,0.9720647,91637.0,91636.0,0.1944926]
[1745350038648,0.7539,91637.0,91636.0,0.1944926]
[1745350038851,0.7680367,91637.0,91636.0,0.1944926]
[1745350039242,0.5760367,91637.0,91636.0,0.1944926]
[1745350040245,0.6638367,91637.0,91636.0,0.1944926]
[1745350041250,0.4718367,91637.0,91636.0,0.1944926]
[1745350046348,0.002,91637.0,91636.0,0.52910863]
[1745350046550,0.002,91637.0,91636.0,0.65264767]
[1745350046750,0.0545112,91649.0,91636.0,0.90264767]
[1745350046950,0.109023,91649.0,91647.0,0.3608]
[1745350047153,0.4149,91652.0,91648.0,0.09036495]
[1745350047458,0.4149,91652.0,91649.0,0.1028]
[1745350047651,0.1090207,91651.0,91649.0,0.3628]
[1745350047852,0.1090207,91651.0,91650.0,0.1024]
[1745350048046,0.5239197,91652.0,91650.0,0.3314]
[1745350048250,0.5239197,91652.0,91650.0,0.4342]
[1745350048251,0.10902,91651.0,91650.0,0.4342]
[1745350050550,0.21362,91651.0,91650.0,0.4342]
[1745350050758,0.21462,91651.0,91650.0,0.4372]
[1745350051952,0.21462,91651.0,91650.0,0.798]
[1745350052453,0.21462,91651.0,91650.0,0.4372]
[1745350054356,0.21462,91651.0,91650.0,0.41102004]
[1745350055060,0.40662,91651.0,91650.0,0.41102004]
[1745350056254,0.21462,91651.0,91650.0,0.41102004]
[1745350057957,0.21462,91651.0,91650.0,0.39738464]
[1745350059154,0.40662,91651.0,91650.0,0.39738464]
[1745350060858,0.2976,91651.0,91650.0,0.39738464]
[1745350061059,0.4066309,91651.0,91650.0,0.39738464]
[1745350062465,0.4066309,91651.0,91650.0,0.37120414]
[1745350063064,0.4056309,91651.0,91650.0,0.37120414]
[1745350063266,0.4086309,91651.0,91650.0,0.37120414]
[1745350064474,0.4076309,91651.0,91650.0,0.36820414]
[1745350064676,0.4086309,91651.0,91650.0,0.36920414]
[1745350065276,0.4056309,91651.0,91650.0,0.36920414]
[1745350065570,0.4086309,91651.0,91650.0,0.36920414]
[1745350066272,0.4076309,91651.0,91650.0,0.36920414]
[1745350067267,0.2986,91651.0,91650.0,0.36920414]
[1745350067484,0.2986,91651.0,91650.0,0.73000414]
[1745350067970,0.2986,91651.0,91650.0,0.36920414]
[1745350068269,0.1066,91651.0,91650.0,0.36920414]
[1745350068575,0.2156309,91651.0,91650.0,0.36920414]
[1745350068869,0.2156309,91651.0,91650.0,0.35556926]
[1745350069276,0.1066,91651.0,91650.0,0.35556926]
[1745350069467,0.2156309,91651.0,91650.0,0.35556926]
[1745350070378,0.2156309,91651.0,91650.0,0.32938954]
[1745350073967,0.1066,91651.0,91650.0,0.32938954]
[1745350075071,0.1076,91651.0,91650.0,0.31030117]
[1745350075872,0.1066,91651.0,91650.0,0.31030117]
[1745350078369,0.1066,91651.0,91650.0,0.28412289]
[1745350079168,0.1066,91651.0,91650.0,0.27048837]
[1745350080677,0.1046,91651.0,91650.0,0.27048837]
[1745350080872,0.1056,91651.0,91650.0,0.27048837]
[1745350081373,0.002,91651.0,91650.0,0.27048837]
[1745350081578,0.00016367,91655.0,91650.0,0.74040037]
[1745350081766,0.0977,91668.0,91651.0,0.208708]
[1745350081966,0.16922,91678.0,91654.0,0.3608]
[1745350081967,0.0993,91678.0,91654.0,0.3608]
[1745350082169,0.0977,91667.0,91655.0,0.211504]
[1745350082380,0.00824144,91663.0,91655.0,0.3724]
[1745350082573,0.0977,91657.0,91655.0,0.3724]
[1745350084475,0.0987,91657.0,91655.0,0.3754]
[1745350084775,0.17911337,91673.0,91656.0,0.109104]
[1745350084979,0.17911337,91673.0,91669.0,0.3608]
[1745350085174,0.1031,91672.0,91670.0,0.2004]
[1745350085482,0.3148066,91672.0,91670.0,0.4704]
[1745350085667,0.2058,91672.0,91670.0,0.4704]
[1745350086272,0.3148065,91672.0,91670.0,0.4704]
[1745350086474,0.2058,91672.0,91670.0,0.4704]
[1745350086673,0.1090072,91671.0,91670.0,0.4704]
[1745350086873,0.1090072,91671.0,91670.0,0.3696]
[1745350087071,0.3071072,91671.0,91670.0,0.3696]
[1745350087271,0.4991072,91671.0,91670.0,0.3696]
[1745350088072,0.5976072,91671.0,91670.0,0.3726]
[1745350088380,0.5996072,91671.0,91670.0,0.3726]
[1745350090679,0.5001072,91671.0,91670.0,0.3696]
[1745350090883,0.5011072,91671.0,91670.0,0.3726]
[1745350091183,0.002,91671.0,91670.0,0.3726]
[1745350091770,0.001,91671.0,91670.0,0.3726]
[1745350092077,0.004,91671.0,91670.0,0.5646]
[1745350092770,0.001,91671.0,91670.0,0.5676]
[1745350092971,0.001,91671.0,91670.0,0.468]
[1745350093678,0.001,91671.0,91670.0,0.469]
[1745350094075,0.005,91679.0,91670.0,0.578088]
[1745350094270,0.005,91679.0,91678.0,0.3608]
[1745350094482,0.005,91679.0,91678.0,0.6008]
[1745350095071,0.1139976,91679.0,91678.0,0.58716978]
[1745350095273,0.1031,91679.0,91678.0,0.58716978]
[1745350095973,0.1031,91679.0,91678.0,0.58816978]
[1745350096171,0.2120976,91679.0,91678.0,0.58816978]
[1745350096780,0.2120976,91679.0,91678.0,0.59216978]
[1745350097284,0.1031,91679.0,91678.0,0.59116978]
[1745350097471,0.1031,91679.0,91678.0,0.59216978]
[1745350098472,0.1031,91679.0,91678.0,0.245]
[1745350098879,0.1031,91679.0,91678.0,0.3388]
[1745350099888,0.1031,91679.0,91678.0,0.4397]
[1745350101075,0.2120976,91679.0,91678.0,0.4397]
[1745350102076,0.1031,91679.0,91678.0,0.4397]
[1745350103278,0.1031,91679.0,91678.0,0.5346]
[1745350105886,0.06988,91703.0,91678.0,1.00447599]
[1745350106085,0.099,91698.0,91691.0,0.3608]
[1745350106285,0.099,91698.0,91692.0,0.292]
[1745350106482,0.099,91698.0,91692.0,0.50583436]
[1745350106675,0.099,91698.0,91692.0,0.49220632]
[1745350106877,0.099,91698.0,91692.0,0.49120632]
[1745350107380,0.0978,91697.0,91692.0,0.50578749]
[1745350107777,0.0957,91696.0,91692.0,0.50578749]
[1745350108288,0.0978,91695.0,91692.0,0.50478749]
[1745350108581,0.0978,91695.0,91692.0,0.50778749]
[1745350108788,0.0957,91694.0,91692.0,0.50778749]
[1745350108977,0.0957,91694.0,91692.0,0.50878749]
[1745350109182,0.0978,91693.0,91692.0,0.50878749]
[1745350109582,0.0978,91693.0,91692.0,0.50778749]
[1745350109778,0.0978,91693.0,91692.0,0.49520632]
[1745350109978,0.0978,91693.0,91692.0,0.49720632]
[1745350110380,0.0978,91693.0,91692.0,0.49820632]
[1745350110579,0.0988,91693.0,91692.0,0.49920632]
[1745350112285,0.0988,91693.0,91692.0,0.49820632]
[1745350113083,0.0988,91693.0,91692.0,0.49920632]
[1745350113582,0.001,91693.0,91692.0,0.49920632]
[1745350116788,0.0957,91694.0,91692.0,0.49220632]
[1745350116993,0.001,91693.0,91692.0,0.49820632]
[1745350117291,0.0957,91694.0,91692.0,0.49220632]
[1745350117490,0.001,91693.0,91692.0,0.49820632]
[1745350117887,0.0957,91694.0,91692.0,0.49820632]
[1745350118194,0.0967,91694.0,91692.0,0.49820632]
[1745350118387,0.0967,91694.0,91692.0,0.49920632]
[1745350119088,0.0967,91694.0,91692.0,0.49720632]
[1745350119391,0.0967,91694.0,91692.0,0.49820632]
[1745350125687,0.0935,91693.0,91692.0,0.49820632]
[1745350126788,0.0935,91693.0,91692.0,0.40020632]
[1745350126992,0.1889,91693.0,91692.0,0.39920632]
[1745350128193,0.0945,91693.0,91692.0,0.40020632]
[1745350136295,0.0945,91693.0,91692.0,0.247]
[1745350137593,0.299181,91693.0,91692.0,0.247]
[1745350138287,0.491181,91693.0,91692.0,0.247]
[1745350142509,0.491181,91693.0,91692.0,0.23567265]
[1745350145901,0.561061,91693.0,91692.0,0.23567265]
[1745350151610,0.491181,91693.0,91692.0,0.23567265]
[1745350151810,0.561061,91693.0,91692.0,0.23567265]
[1745350155415,0.491181,91693.0,91692.0,0.23567265]
[1745350155609,0.670121,91693.0,91692.0,0.23567265]
[1745350155815,0.920121,91693.0,91692.0,0.23567265]
[1745350156006,0.920121,91693.0,91692.0,0.05402585]
[1745350156206,1.335021,91693.0,91692.0,0.02077225]
[1745350156508,0.1089976,91679.0,91669.0,0.00016367]
[1745350156707,0.1090083,91670.0,91669.0,0.00016367]
[1745350156912,0.1090083,91670.0,91669.0,0.27016367]
[1745350157109,0.3010083,91670.0,91669.0,0.27016367]
[1745350157412,0.4966083,91670.0,91669.0,0.27016367]
[1745350158508,0.4966083,91670.0,91669.0,0.27116367]
[1745350159102,0.4976083,91670.0,91669.0,0.27516367]
[1745350161811,0.3886,91670.0,91669.0,0.27516367]
[1745350162012,0.2927,91670.0,91669.0,0.27516367]
[1745350162311,0.1007,91670.0,91669.0,0.27516367]
[1745350162514,0.001,91670.0,91669.0,0.63596367]
[1745350162714,0.001,91670.0,91669.0,0.88596367]
[1745350162917,0.0544972,91682.0,91669.0,0.63596367]
[1745350163219,0.2065994,91678.0,91669.0,0.9634447]
[1745350163519,0.0976,91678.0,91670.0,0.1995]
[1745350163708,0.1090015,91676.0,91670.0,0.4395]
[1745350163911,0.1090005,91677.0,91670.0,0.4395]
[1745350164319,0.1090018,91676.0,91670.0,0.4395]
[1745350164610,0.1520994,91678.0,91670.0,0.4395]
[1745350164611,0.1090029,91675.0,91670.0,0.4395]
[1745350165706,0.1090029,91675.0,91670.0,0.4425]
[1745350166421,0.001,91676.0,91670.0,0.4425]
[1745350166914,0.1100027,91675.0,91670.0,0.4425]
[1745350167118,0.001,91675.0,91670.0,0.4425]
[1745350167323,0.001,91675.0,91670.0,0.42886922]
[1745350167722,0.001,91676.0,91671.0,0.109084]
[1745350168021,0.001,91676.0,91675.0,0.3608]
[1745350168215,0.001,91676.0,91675.0,0.6108]
[1745350168416,0.00016367,91679.0,91675.0,0.71988]
[1745350168614,0.109,91677.0,91676.0,0.1937]
[1745350168813,0.05466257,91679.0,91676.0,0.4337]
[1745350169419,0.00016367,91679.0,91676.0,0.4337]
[1745350169728,0.001,91677.0,91676.0,0.4377]
[1745350170218,0.00116367,91679.0,91676.0,0.4367]
[1745350170617,0.00116367,91679.0,91677.0,0.0958]
[1745350170810,0.00016367,91679.0,91678.0,0.0996]
[1745350171016,0.00016367,91679.0,91678.0,0.3496]
[1745350171225,0.00016367,91679.0,91678.0,0.4466]
[1745350172317,0.00116367,91679.0,91678.0,0.6386]
[1745350172819,0.00116367,91679.0,91678.0,0.6436]
[1745350173419,0.00116367,91679.0,91678.0,0.6446]
[1745350173722,0.00116367,91679.0,91678.0,0.6466]
[1745350173923,0.00116367,91679.0,91678.0,0.6456]
[1745350174219,0.00116367,91679.0,91678.0,0.4536]
[1745350174417,0.00116367,91679.0,91678.0,0.4546]
[1745350175320,0.00016367,91679.0,91678.0,0.4486]
[1745350175625,0.00116367,91679.0,91678.0,0.4546]
[1745350175921,0.00016367,91679.0,91678.0,0.4486]
[1745350176222,0.00116367,91679.0,91678.0,0.4536]
[1745350176612,0.00116367,91679.0,91678.0,0.4546]
[1745350176812,0.00116367,91679.0,91678.0,0.4556]
[1745350177519,0.00116367,91679.0,91678.0,0.4526]
[1745350177715,0.00116367,91679.0,91678.0,0.4546]
[1745350178213,0.00116367,91679.0,91678.0,0.4536]
[1745350178819,0.00116367,91679.0,91678.0,0.4546]
[1745350179915,0.00116367,91679.0,91678.0,0.4536]
[1745350180716,0.00116367,91679.0,91678.0,0.4546]
[1745350181123,0.00116367,91679.0,91678.0,0.6466]
[1745350182629,0.00116367,91679.0,91678.0,0.6476]
[1745350183121,0.00016367,91679.0,91678.0,0.6416]
[1745350183426,0.00116367,91679.0,91678.0,0.6476]
[1745350184823,0.093,91689.0,91678.0,0.6476]
[1745350185013,0.093,91689.0,91687.0,0.3608]
[1745350185214,0.093,91689.0,91688.0,0.3001]
[1745350185421,0.093,91689.0,91688.0,0.5501]
[1745350185823,0.2035,91700.0,91688.0,0.5501]
[1745350186018,0.1019,91699.0,91690.0,0.2064851]
[1745350186223,0.1019,91699.0,91691.0,0.1992]
[1745350186425,0.1019,91699.0,91691.0,0.46125864]
[1745350186923,0.210874,91699.0,91691.0,0.46125864]
[1745350187320,0.1089751,91698.0,91691.0,0.46125864]
[1745350187727,0.1996,91697.0,91691.0,0.46125864]
[1745350188221,0.0544887,91696.0,91691.0,0.46125864]
[1745350188423,0.1089789,91695.0,91691.0,0.46425864]
[1745350188625,0.1996,91695.0,91691.0,0.46425864]
[1745350188824,0.308579,91695.0,91691.0,0.46425864]
[1745350189021,0.1996,91695.0,91691.0,0.46425864]
[1745350189415,0.1996,91695.0,91691.0,0.46525864]
[1745350190015,0.2016,91695.0,91691.0,0.46525864]
[1745350192026,0.2006,91695.0,91691.0,0.46125864]
[1745350192215,0.2016,91695.0,91691.0,0.46525864]
[1745350193026,0.2006,91695.0,91691.0,0.46525864]
[1745350193330,0.2016,91695.0,91691.0,0.46525864]
[1745350196225,0.2016,91695.0,91691.0,0.36315864]
[1745350200419,0.2016,91695.0,91691.0,0.3501]
[1745350200624,0.2016,91695.0,91691.0,0.254]
[1745350200822,0.1012,91694.0,91691.0,0.254]
[1745350201126,0.1089822,91692.0,91691.0,0.254]
[1745350201325,0.1089822,91692.0,91691.0,0.253]
[1745350201527,0.0544923,91690.0,91669.0,0.00016367]
[1745350201733,0.4697988,91678.0,91677.0,0.07]
[1745350202131,0.5788788,91678.0,91677.0,0.07]
[1745350202431,0.7708788,91678.0,91677.0,0.07]
[1745350202632,0.8692788,91678.0,91677.0,0.07]
[1745350203123,0.8702788,91678.0,91677.0,0.073]
[1745350203725,0.8712788,91678.0,91677.0,0.073]
[1745350204628,0.9691788,91678.0,91677.0,0.072]
[1745350205436,1.9948788,91678.0,91677.0,0.04382689]